Workbook

Sheet Home
A1: =+IF(AND(LEFT(input!J7,1)="S",input!J5-1>2016)=TRUE,"S_","") ->  | B1: input
A3: ITCALC
A4: 2021-03-02 | C4: Income tax calculator
A5: 1
O16: Last updated: | Q16: 2024-03-26
P17: } copyright
C18: 39-41 Bank Street § Ashford § Kent TN23 1DQ § | P18: } disclaimer

Sheet input
A1: Home | B1: total
A2: bhnpi | B2: Input - income, expenditure and tax reliefs
R4: Scotland
B5: Tax year | I5: Year ended 5 April | J5: 2025 | R5: Rest of UK
P6: =P7-1 -> 2023
B7: Residence of taxpayer | J7: Rest of UK | P7: =P8-1 -> 2024
P8: =T8+1 -> 2025 | R8: last year available | T8: =MAX(qry_tax_rates22[year]) -> 2024
B9: Income details | J9: (£)
B10: Total earnings: | J10: 0
B12: =+IF(J5<2017,"Dividends (excluding tax credit:)","Dividends:") -> Dividends: | J12: 0
B14: Rental income after tax-deductible expenses, but in the case of residential letting, excluding finance costs: | J14: 0
B16: Savings income, e.g. bank interest: | J16: 0
B18: Other income: | J18: 0
B24: Tax reliefs
B25: Pension contributions (net): | J25: 0
B27: Gift aid payments (net): | J27: 0
B29: Finance costs relating to residential accommodation: | J29: 0

Sheet total
A1: input | B1: macro_detail_sheet_setup | C1: detail
A2: nbhp | B2: Results - income tax calculator
B4: Results
J5: E&W
G6: =+input!J5 - 1 & "/" & input!J5 -> 2024/2025 | J6: =G6 -> 2024/2025
G7: (£) | J7: (£)
C8: Earnings | G8: =+input!J10 -> 0 | J8: 0
C9: =IF(input!J5<2017,"Dividends (including tax credit)", "Dividends") -> Dividends | G9: =IF(input!J5<2017,+input!J12/(1-dc(#REF!,"DBR",LEFT(total!G6,4))),input!J12) -> 0 | J9: 0
C10: Net rental income | G10: =+input!J14-detail!D162 -> 0 | J10: 0
C11: Savings | G11: =input!J16 -> 0 | J11: 0
C12: Other income | G12: =+input!J18 -> 0 | J12: 0
C13: Total income | G13: =+SUM(G8:G12) -> 0 | J13: 0
J14: 0
C15: Personal allowance | G15: =+MIN(PA_amt(qry_tax_rates22[],country,input!J12,total!G8+total!G10+total!G11+G12,LEFT(total!G6,4),input!J27,input!J25)) -> 12570 | J15: 12570
J16: 0
C17: Taxable income | G17: =MAX(0,G13-G15) -> 0 | J17: 0
J18: 0
C19: Tax | G19: =+tax(qry_tax_rates22[],country,G8+G10+G12,G11,input!J12,LEFT(total!G6,4),input!J25,input!J27) -> 0 | J19: =+tax(#REF!,"",G8+G10+G12,G11,G9,LEFT(total!G6,4),input!J25,input!J27)+detail!F30 -> 
C20: Credit for interest | G20: =-detail!D160 -> 0
C21: Tax liability | G21: =+G20+G19 -> 0
F24: check | G24: =+detail!D31 -> 0
C25: Net income
C26: Received income | G26: =+input!J10+input!J12+input!J14+input!J16 -> 0
C27: Payments out | G27: =+input!J25+input!J27 -> 0
C28: Tax | G28: =+G19 -> 0
C29: NI | G29: =+class1ee(#REF!,G8,LEFT(G6,4)) -> 
G30: =+G26-G27-G28-G29 -> 

Sheet detail
A1: total
A2: bhp | B2: Detailed calculations - income tax calculator
C4: =+IF(H95="Yes","Choose the method of computation:","The method makes no difference with these figures") -> Choose the method of computation: | D4: Most beneficial | S4: Years hardcoded
C6: =+total!G6 -> 2024/2025 | D6: Total (£) | F6: Non-savings (£) | H6: Savings (£) | J6: Dividend (£)
C8: Income | D8: =+SUM(F8:J8) -> 0 | F8: =+D85 -> 0 | H8: =+D86 -> 0 | J8: =+D87 -> 0
C9: =+IF(D9<total!G15,"Personal allowance (restricted to total income)","Personal allowance") -> Personal allowance | D9: =+SUM(F9:J9) -> 12570 | F9: =+D101 -> 0 | H9: =+D102 -> 0 | J9: =+D103 -> 12570
D10: =+MAX(D8-D9,0) -> 0 | F10: =MAX(0,F8-F9) -> 0 | H10: =MAX(0,H8-H9) -> 0 | J10: =+MAX(0,J8-J9) -> 0
C12: Income within savings/dividend zero rate | H12: =+MAX(0,D112) -> 0 | J12: =+MAX(0,D127) -> 0 | T12: =+input!J5 -> 2025
C13: Income at savings rate | H13: =+D111 -> 0
C14: Income at starter rate | F14: =+D119 -> 0
C15: Income at basic and basic dividend rate | F15: =+D120+D118 -> 0 | H15: =+D113 -> 0 | J15: =+D128 -> 0
C16: Income at intermediate rate | F16: =+D121 -> 0
C17: Income at higher and higher dividend rate | F17: =+D122 -> 0 | H17: =+D114 -> 0 | J17: =+D129 -> 0
C18: =IF(country="S_","Income at advanced, additional and additional dividend rate","Income at additional and additional dividend rate") -> Income at additional and additional dividend rate | F18: =+D123 -> 0 | H18: =+D115 -> 0 | J18: =+D130 -> 0
C19: =IF(country="S_","Income at top rate","") ->  | F19: =D124 -> 0
C21: Tax at savings rate | H21: =+D134 -> 0
C22: Tax at starter rate | F22: =+D140 -> 0
C23: Tax at basic rate | F23: =+D141 -> 0 | H23: =+D135 -> 0 | J23: =+D148 -> 0
C24: Tax at intermediate rate | F24: =+D142 -> 0
C25: Tax at higher rate | F25: =+D143 -> 0 | H25: =+D136 -> 0 | J25: =+D149 -> 0
C26: =IF(country="S_","Tax at advanced and additional rate","Tax at additional rate") -> Tax at additional rate | F26: =+D144 -> 0 | H26: =+D137 -> 0 | J26: =+D150 -> 0
C27: Tax at top rate | F27: =D145 -> 0
F28: =+SUM(F21:F27) -> 0 | H28: =+SUM(H21:H26) -> 0 | J28: =+SUM(J21:J26) -> 0
C29: Less dividend tax credit | J29: =IF(VALUE(LEFT(D39,4))<2016,J10*-0.1,0) -> 0
C30: Less basic rate relief for finance costs on rental | F30: =-D160 -> 0
C31: Total tax | D31: =SUM(F31:J31) -> 0 | F31: =+SUM(F28:F30) -> 0 | H31: =+SUM(H28:H30) -> 0 | J31: =+SUM(J28:J30) -> 0
C33: Disallowed credit for finance costs to carry forward | D33: =+D161 -> 0
C38: Tax comps | D38: limit here to whatever year
C39: Rates | D39: =+C6 -> 2024/2025 | H39: =+VALUE(LEFT(D39,4)) -> 2024
C40: SR | D40: =+dc(qry_tax_rates22[],$C40,LEFT(D$39,4)) -> 0 | E40: =+dc(qry_tax_rates22[],$C40,LEFT(E$5,4)) -> 
C41: LBR | D41: =+dc(qry_tax_rates22[],$C41,LEFT(D$39,4)) -> 0 | H41: above as start rate
C42: BR | D42: =+dc(qry_tax_rates22[],$C42,LEFT(D$39,4)) -> 0.2 | E42: =+dc(qry_tax_rates22[],$C42,LEFT(E$5,4)) -> 
C43: UBR | D43: =+dc(qry_tax_rates22[],$C43,LEFT(D$39,4)) -> 0 | H43: above as intermediate rate
C44: HR | D44: =+dc(qry_tax_rates22[],$C44,LEFT(D$39,4)) -> 0.4 | E44: =+dc(qry_tax_rates22[],$C44,LEFT(E$5,4)) -> 
C45: AR | D45: =+dc(qry_tax_rates22[],$C45,LEFT(D$39,4)) -> 0.45 | E45: =+dc(qry_tax_rates22[],$C45,LEFT(E$5,4)) -> 
C47: DSR | D47: =+dc(qry_tax_rates22[],$C47,LEFT(D$39,4)) -> 0 | E47: =+dc(qry_tax_rates22[],$C47,LEFT(E$5,4)) -> 
C48: DBR | D48: =+dc(qry_tax_rates22[],$C48,LEFT(D$39,4)) -> 0.0875 | E48: =+dc(qry_tax_rates22[],$C48,LEFT(E$5,4)) -> 
C49: DHR | D49: =+dc(qry_tax_rates22[],$C49,LEFT(D$39,4)) -> 0.3375 | E49: =+dc(qry_tax_rates22[],$C49,LEFT(E$5,4)) -> 
C50: DAR | D50: =+dc(qry_tax_rates22[],$C50,LEFT(D$39,4)) -> 0.3935 | E50: =+dc(qry_tax_rates22[],$C50,LEFT(E$5,4)) -> 
C52: Amounts
C53: SRB | D53: =+dc(qry_tax_rates22[],$C53,LEFT(D$39,4)) -> 5000 | E53: =+dc(qry_tax_rates22[],$C53,LEFT(E$5,4)) ->  | H53: grossed up deductions
C54: LBRB | D54: =+dc(qry_tax_rates22[],$C54,LEFT(D$39,4))+H54 -> 0
C55: BRB | D55: =+dc(qry_tax_rates22[],$C55,LEFT(D$39,4))+H55 -> 32700 | E55: =+dc(qry_tax_rates22[],$C55,LEFT(E$5,4)) ->  | H55: =(+input!J25+input!J27)/(1-dc(qry_tax_rates22[],"BR",D60)) -> 0
C56: UBRB | D56: =+dc(qry_tax_rates22[],$C56,LEFT(D$39,4))+H56 -> 0
C57: HRB | D57: =+dc(qry_tax_rates22[],$C57,LEFT(D$39,4)) -> 87440 | E57: =+dc(qry_tax_rates22[],$C57,LEFT(E$5,4)) -> 
C60: Scottish version | D60: =+LEFT(D39,4) -> 2024
C61: SR | D61: =+dc(qry_tax_rates22[],"S_"&$C61,D$60) -> 0
C62: LBR | D62: =+dc(qry_tax_rates22[],"S_"&$C62,D$60) -> 0.19
C63: BR | D63: =+dc(qry_tax_rates22[],"S_"&$C63,D$60) -> 0.2
C64: UBR | D64: =+dc(qry_tax_rates22[],"S_"&$C64,D$60) -> 0.21
C65: HR | D65: =+dc(qry_tax_rates22[],"S_"&$C65,D$60) -> 0.42
C66: AR | D66: =+dc(qry_tax_rates22[],"S_"&$C66,D$60) -> 0.45
C67: TR | D67: =+dc(qry_tax_rates22[],"S_"&$C67,D$60) -> 0.48
C69: DSR | D69: =+dc(qry_tax_rates22[],"S_"&$C69,D$60) -> 0.075 | P69: Future proof but same at moment
C70: DBR | D70: =+dc(qry_tax_rates22[],"S_"&$C70,D$60) -> 0.0875
C71: DHR | D71: =+dc(qry_tax_rates22[],"S_"&$C71,D$60) -> 0.3375
C72: DAR | D72: =+dc(qry_tax_rates22[],"S_"&$C72,D$60) -> 0.3935
C74: Amounts
C75: SRB | D75: =+dc(qry_tax_rates22[],"S_"&$C75,D$60) -> 0
C76: LBRB | D76: =+dc(qry_tax_rates22[],"S_"&$C76,D$60) -> 2306
C77: BRB | D77: =+dc(qry_tax_rates22[],"S_"&$C77,D$60)+H77 -> 11685 | H77: =+H55 -> 0 | J77: comes from above - only grossed up at BR and extend
C78: UBRB | D78: =+dc(qry_tax_rates22[],"S_"&$C78,D$60) -> 17101
C79: HRB | D79: =+dc(qry_tax_rates22[],"S_"&$C79,D$60) -> 31338
C80: ARB | D80: =+dc(qry_tax_rates22[],"S_"&$C80,D$60) -> 50140
C82: Sav allowance | D82: =sav_allce_amount(qry_tax_rates22[],D85,D86,D87,LEFT(D39,4),input!J27,input!J25) -> 1000
C83: Max div allce | D83: =+dc(qry_tax_rates22[],"div_allce",LEFT(D39,4)) -> 500 | H83: =IF(AND(D87+D88+D89>dc(Table_0,"SRB",D68)+dc(Table_0,"BRB",D68)+dc(Table_0,"PA",D68),D87>dc(Table_0,"SRB",D68)+dc(Table_0,"BRB",D68),D87-D92<dc(Table_0,"SRB",D68)+dc(Table_0,"BRB",D68))=TRUE,D87-dc(Table_0,"SRB",D68)-dc(Table_0,"BRB",D68),+MIN(D92,D87))
C84: From anywhere
C85: NSI | D85: =+input!J10+input!J14+input!J18-D162 -> 0
C86: Savings | D86: =total!G11 -> 0
C87: Dividends | D87: =total!G9 -> 0
C88: pension | D88: =+input!J25 -> 0
C89: gift aid | D89: =+input!J27 -> 0 | H89: tax copied in | J89: =+total!G19 -> 0
C91: Adjust income for PA
C92: PA | D92: =+MIN(D8,PA_amt(qry_tax_rates22[],country,input!J12,F8+H8,LEFT(C6,4),input!J27,input!J25)) -> 0 | F92: PA_amt must use net div
C93: Allocate PA - always based on UK see opposite | D93: complex scenario | F93: simple scenario | H93: difference? | J93: Chosen? | N93: Based PA allocation on UK rates
C94: NSI | D94: =+PA_alloc(qry_tax_rates22[],"NSI",country,D85,D86,D87,LEFT(D39,4),D88,D90) -> 0 | J94: =+D4 -> Most beneficial | N94: Else you may leave a portion of income at HR
C95: Savings | D95: =+PA_alloc(qry_tax_rates22[],"sav",country,D85,D86,D87,LEFT(D39,4),D88,D90) -> 0 | F95: =+MIN(D92-F98,D86) -> 0 | H95: =+IF(OR(D95<>F95,D96<>F96,D98<>F98)=TRUE,"Yes","No") -> Yes | J95: Standard | N95: But get dividends etc into gap - or rather that
C96: Dividends | D96: =+PA_alloc(qry_tax_rates22[],"div",country,D85,D86,D87,LEFT(D39,4),D88,D90) -> 12570 | F96: =+MIN(D92-F98-F95,D87) -> 0 | J96: Most beneficial | N96: is where the PA will be allocated
C97: NSI mop up | D97: =+MAX(0,D92-D94-D95-D96) -> 0
C98: New NSI | D98: =+MIN(D97+D94,D85) -> 0 | F98: =+MIN(D92,D85) -> 0
C100: Chosen alloocation method
C101: NSI | D101: =+IF($J$94="Standard",F98,D98) -> 0 | F101: Ditributes any remaining PA elsewhere if left - need formula to do same
C102: Savings | D102: =+IF($J$94="Standard",F95,D95) -> 0
C103: Dividends | D103: =+IF($J$94="Standard",F96,D96) -> 12570
C105: Adjusted income
C106: NSI | D106: =+D85-D101 -> 0
C107: Savings | D107: =+D86-D102 -> 0 | H107: Order is NSI, savings, dividends
C108: Dividends | D108: =+D87-D103 -> -12570 | H108: despite order shown
B109: Income
C110: Amount savings - COMES SECOND AFTER NSI
C111: SR amount | D111: =+MAX(MIN(D53-D106,D107),0) -> 0 | F111: Scotland element removed as not relevant - watch as this had D90 not 70 and got zero result always
C112: Savings allowance - always be same as based on UK rates | D112: =+MIN(sav_allce_amount(qry_tax_rates22[],D85,D86,D87,LEFT(D39,4),input!J27,input!J25),D107-D111) -> 0 | J112: now allows for pension / gift aid | N112: remember to reduce band by anything used here
C113: BR amount | D113: =+MAX(0,MIN(D107-D111-D112,D55+D53-D106-D112-D111)) -> 0
C114: HR amount | D114: =MAX(0,MIN(D107-D111-D113-D112,D57+D55+D53-D106-D113-D112-D111)) -> 0
C115: AR amount | D115: =D107-D111-D113-D114-D112 -> 0
C117: Amount NSI | D117: =+IF(country="S_","SCOTLAND","rUK") -> rUK | F117: must remove whatever has been used as savings = total savings above
C118: SR amount | D118: =IF(country<>"S_",+MAX(MIN(D53,D106),0),MAX(MIN(D75,D106),0)) -> 0 | F118: set at 0 - see scotland_array for details | J118: only this needs changed for Scotland
C119: LBR amount | D119: =+IF(country<>"S_",MAX(MIN(D54,D106-D118),0),MAX(MIN(D76,D106-D118),0)) -> 0
C120: BR amount | D120: =+IF(country<>"S_",MAX(MIN(D55,D106-D118-D119),0),MAX(MIN(D77,D106-D118-D119),0)) -> 0 | J120: Can't deduct what has been used but what would have been used
C121: UBR amount | D121: =+IF(country<>"S_",MAX(MIN(D56,D106-D118-D119-D120),0),MAX(MIN(D78,D106-D118-D119-D120),0)) -> 0
C122: HR amount | D122: =IF(country<>"S_",+MIN(D106-D120-D118-D119-D121,D57),MIN(D106-D120-D118-D119-D121,D79)) -> 0
C123: AR amount | D123: =IF(country<>"S_",+D106-D118-D120-D122-D119-D121,MIN(D106-D118-D119-D120-D121-D122,D80)) -> 0
C124: TR amount | D124: =IF(country<>"S_",0,D106-D118-D119-D120-D121-D122-D123) -> 0
C126: Amount dividends
C127: Exempt amount - always same | D127: =+MIN(dc(qry_tax_rates22[],"div_allce",LEFT(D39,4)),D108) -> -12570 | J127: These are done via totals rather than above to allow for savings allowance deduction
C128: BR amount | D128: =+MAX(MIN(D108-D127,D53+D55+D54+D56-D106-D107-D127),0) -> 0
C129: HR amount | D129: =MAX(0,+MIN(D108-D128-D127,D53+D55+D54+D56+D57-D106-D107-D127-D128)) -> 0 | F129: check
C130: AR amount | D130: =+D108-D128-D129-D127 -> 0
B132: Tax
C133: Savings
C134: SR | D134: =+D111*D40 -> 0
C135: BR | D135: =+D113*D42 -> 0
C136: HR | D136: =+D114*D44 -> 0
C137: AR | D137: =+D115*D45 -> 0
C139: NSI
C140: LBR | D140: =IF(country="S_",(D119)*D62,(D119)*D41) -> 0
C141: BR | D141: =IF(country="S_",(D120+D118)*D63,(D120+D118)*D42) -> 0
C142: UBR | D142: =+IF(country="S_",(D118+D121)*D64,(D118+D121)*D43) -> 0
C143: HR | D143: =+IF(country="S_",D122*D65,D122*D44) -> 0
C144: AR | D144: =IF(country="S_",D123*D66,+D123*D45) -> 0
C145: TR | D145: =IF(country="S_",D124*D67,0) -> 0
C147: Dividends
C148: BR | D148: =+D128*D48 -> 0
C149: HR | D149: =+D129*D49 -> 0 | F149: only split rates in NSI a rest are UK rates
C150: AR | D150: =+D130*D50 -> 0
C152: Total | D152: =+SUM(D134:D151) -> 0
C153: Interest credit | F153: xxxx
C154: Rate | D154: =IF(LEFT(D39,4)<"2016",0,(IF(LEFT(D39,4)>"2020",1,INDEX(H155:H159,MATCH(LEFT(D39,4),F155:F159,0))))) -> 1 | F154: percentages
C155: Max credit | D155: =+D154*input!J29*detail!D42 -> 0 | F155: 2016 | H155: 0
C156: Credit ltd to lower of: | F156: 2017 | H156: 0.25
C157: finance costs - not relieved - as above | D157: =+D155 -> 0 | F157: 2018 | H157: 0.5
C158: profits of property business in year | D158: =MAX(0,+(input!J14-detail!D162)*D42) -> 0 | F158: 2019 | H158: 0.75
C159: Non savings, non-div inc after allowances | D159: =+SUM(D118:D123)*D42 -> 0 | F159: 2020 | H159: 1
C160: credit allowed | D160: =+MIN(D157:D159) -> 0
C161: credit to carry | D161: =MAX(0,D155-D160) -> 0
C162: to charge vs profit | D162: =+(1-D154)*input!J29 -> 0

Sheet xxxSheet1 (hidden)
A1: year | B1: year_name | C1: last_updated | D1: PA | E1: PAT | F1: PAR | G1: SRB | H1: SR | I1: BRB | J1: BR | K1: HRB | L1: HR | M1: AR | N1: DSR | O1: DBR | P1: DHR | Q1: DAR | R1: div_allce | S1: sav_allce_BR | T1: sav_allce_HR | U1: LBRB | V1: LBR | W1: UBRB | X1: UBR | Y1: OROI | Z1: fuel_bik | AA1: CGT_LR | AB1: CGT_HR | AC1: CGT_ER | AD1: CGT_AEA | AE1: CGT_LRR | AF1: CGT_HRR | AG1: CT_SPR | AH1: CT_MCR | AI1: CT_MRF | AJ1: CT_MRLT | AK1: CT_MRUT | AL1: CA_MR | AM1: CA_SR | AN1: NIC_PT | AO1: NIC_UEL | AP1: NIC_LR | AQ1: NIC_UR | AR1: NIC_ST | AS1: NIC_ER | AT1: NIC_PT_W | AU1: NIC_UEL_W | AV1: NIC_LPL | AW1: NIC_UPL | AX1: NIC_SE1 | AY1: NIC_SE2 | AZ1: NIC_C2 | BA1: NIC_C2_EXEMPT | BB1: VAT_SR | BC1: VAT_RR | BD1: S_PA | BE1: S_PAT | BF1: S_PAR | BG1: S_SRB | BH1: S_SR | BI1: S_BRB | BJ1: S_BR | BK1: S_HRB | BL1: S_HR | BM1: S_AR | BN1: S_ARB | BO1: S_TR | BP1: S_DSR | BQ1: S_DBR | BR1: S_DHR | BS1: S_DAR | BT1: S_div_allce | BU1: S_sav_allce_BR | BV1: S_sav_allce_HR | BW1: S_LBRB | BX1: S_LBR | BY1: S_UBRB | BZ1: S_UBR | CA1: nrb | CB1: rate | CC1: gross_up | CD1: IHT_MRNRB | CE1: HICBC_threshold | CF1: HICBC_limit | CG1: HICBC_divider | CH1: HICBC_rate
A2: 2022 | B2: 2022/2023 | C2: 2022-03-24 | D2: 12570 | E2: 100000 | F2: 0.5 | G2: 5000 | H2: 0 | I2: 32700 | J2: 0.2 | K2: 112300 | L2: 0.4 | M2: 0.45 | N2: 0 | O2: 0.0875 | P2: 0.3375 | Q2: 0.3935 | R2: 2000 | S2: 1000 | T2: 500 | U2: 0 | V2: 0 | W2: 0 | X2: 0 | Y2: 0.025 | Z2: 25300 | AA2: 0.1 | AB2: 0.2 | AC2: 0.1 | AD2: 12300 | AE2: 0.18 | AF2: 0.28 | AG2: 0.19 | AH2: 0.19 | AI2: 0 | AJ2: 300000 | AK2: 1500000 | AL2: 0.18 | AM2: 0.06 | AN2: 9880 | AO2: 50270 | AP2: 0.1325 | AQ2: 0.0325 | AR2: 9100 | AS2: 0.1505 | AT2: 190 | AU2: 967 | AV2: 11908 | AW2: 50270 | AX2: 0.1025 | AY2: 0.0325 | AZ2: 3.15 | BA2: 6725 | BB2: 0.2 | BC2: 0.05 | BD2: 12570 | BE2: 100000 | BF2: 0.5 | BG2: 0 | BH2: 0 | BI2: 10956 | BJ2: 0.2 | BK2: 118908 | BL2: 0.41 | BM2: 0.46 | BP2: 0.075 | BQ2: 0.0875 | BR2: 0.3375 | BS2: 0.3935 | BT2: 2000 | BU2: 1000 | BV2: 500 | BW2: 2162 | BX2: 0.19 | BY2: 17974 | BZ2: 0.21 | CA2: 325000 | CB2: 0.4 | CC2: 0.25 | CD2: 175000 | CE2: 50000 | CF2: 60000 | CG2: 100 | CH2: 0.01
A3: 2021 | B3: 2021/2022 | C3: 2021-02-28 | D3: 12570 | E3: 100000 | F3: 0.5 | G3: 5000 | H3: 0 | I3: 32700 | J3: 0.2 | K3: 112300 | L3: 0.4 | M3: 0.45 | N3: 0 | O3: 0.075 | P3: 0.325 | Q3: 0.381 | R3: 2000 | S3: 1000 | T3: 500 | U3: 0 | V3: 0 | W3: 0 | X3: 0 | Y3: 0.025 | Z3: 24600 | AA3: 0.1 | AB3: 0.2 | AC3: 0.1 | AD3: 12300 | AE3: 0.18 | AF3: 0.28 | AG3: 0.19 | AH3: 0.19 | AI3: 0 | AJ3: 300000 | AK3: 1500000 | AL3: 0.18 | AM3: 0.06 | AN3: 9568 | AO3: 50270 | AP3: 0.12 | AQ3: 0.02 | AR3: 8840 | AS3: 0.138 | AT3: 184 | AU3: 967 | AV3: 9568 | AW3: 50270 | AX3: 0.09 | AY3: 0.02 | AZ3: 3.05 | BA3: 6515 | BB3: 0.2 | BC3: 0.05 | BD3: 12570 | BE3: 100000 | BF3: 0.5 | BG3: 0 | BH3: 0 | BI3: 10629 | BJ3: 0.2 | BK3: 118908 | BL3: 0.41 | BM3: 0.46 | BP3: 0.075 | BQ3: 0.075 | BR3: 0.325 | BS3: 0.381 | BT3: 2000 | BU3: 1000 | BV3: 500 | BW3: 2097 | BX3: 0.19 | BY3: 18366 | BZ3: 0.21 | CA3: 325000 | CB3: 0.4 | CC3: 0.25 | CD3: 175000 | CE3: 50000 | CF3: 60000 | CG3: 100 | CH3: 0.01
A4: 2020 | B4: 2020/2021 | C4: 2020-03-22 | D4: 12500 | E4: 100000 | F4: 0.5 | G4: 5000 | H4: 0 | I4: 32500 | J4: 0.2 | K4: 112500 | L4: 0.4 | M4: 0.45 | N4: 0 | O4: 0.075 | P4: 0.325 | Q4: 0.381 | R4: 2000 | S4: 1000 | T4: 500 | U4: 0 | V4: 0 | W4: 0 | X4: 0 | Y4: 0.025 | Z4: 24500 | AA4: 0.1 | AB4: 0.2 | AC4: 0.1 | AD4: 12300 | AE4: 0.18 | AF4: 0.28 | AG4: 0.19 | AH4: 0.19 | AI4: 0 | AJ4: 300000 | AK4: 1500000 | AL4: 0.18 | AM4: 0.06 | AN4: 9500 | AO4: 50000 | AP4: 0.12 | AQ4: 0.02 | AR4: 8788 | AS4: 0.138 | AT4: 183 | AU4: 962 | AV4: 9500 | AW4: 50000 | AX4: 0.09 | AY4: 0.02 | AZ4: 3.05 | BA4: 6475 | BB4: 0.2 | BC4: 0.05 | BD4: 12500 | BE4: 100000 | BF4: 0.5 | BG4: 0 | BH4: 0 | BI4: 10573 | BJ4: 0.2 | BK4: 119070 | BL4: 0.41 | BM4: 0.46 | BP4: 0.075 | BQ4: 0.075 | BR4: 0.325 | BS4: 0.381 | BT4: 2000 | BU4: 1000 | BV4: 500 | BW4: 2086 | BX4: 0.19 | BY4: 18272 | BZ4: 0.21 | CA4: 325000 | CB4: 0.4 | CC4: 0.25 | CD4: 175000 | CE4: 50000 | CF4: 60000 | CG4: 100 | CH4: 0.01
A5: 2019 | B5: 2019/2020 | C5: 2019-05-04 | D5: 12500 | E5: 100000 | F5: 0.5 | G5: 5000 | H5: 0 | I5: 32500 | J5: 0.2 | K5: 112500 | L5: 0.4 | M5: 0.45 | N5: 0 | O5: 0.075 | P5: 0.325 | Q5: 0.381 | R5: 2000 | S5: 1000 | T5: 500 | U5: 0 | V5: 0 | W5: 0 | X5: 0 | Y5: 0.025 | Z5: 24100 | AA5: 0.1 | AB5: 0.2 | AC5: 0.1 | AD5: 12000 | AE5: 0.18 | AF5: 0.28 | AG5: 0.19 | AH5: 0.19 | AI5: 0 | AJ5: 300000 | AK5: 1500000 | AL5: 0.18 | AM5: 0.06 | AN5: 8632 | AO5: 50000 | AP5: 0.12 | AQ5: 0.02 | AR5: 8632 | AS5: 0.138 | AT5: 166 | AU5: 962 | AV5: 8632 | AW5: 50000 | AX5: 0.09 | AY5: 0.02 | AZ5: 3 | BA5: 6365 | BB5: 0.2 | BC5: 0.05 | BD5: 12500 | BE5: 100000 | BF5: 0.5 | BG5: 0 | BH5: 0 | BI5: 10395 | BJ5: 0.2 | BK5: 119070 | BL5: 0.41 | BM5: 0.46 | BP5: 0.075 | BQ5: 0.075 | BR5: 0.325 | BS5: 0.381 | BT5: 2000 | BU5: 1000 | BV5: 500 | BW5: 2049 | BX5: 0.19 | BY5: 18486 | BZ5: 0.21 | CA5: 325000 | CB5: 0.4 | CC5: 0.25 | CD5: 150000 | CE5: 50000 | CF5: 60000 | CG5: 100 | CH5: 0.01
A6: 2012 | B6: 2012/2013 | C6: 2018-05-04 | D6: 8105 | E6: 100000 | F6: 0.5 | G6: 2710 | H6: 0.1 | I6: 31660 | J6: 0.2 | K6: 115630 | L6: 0.4 | M6: 0.5 | N6: 0.1 | O6: 0.1 | P6: 0.325 | Q6: 0.425 | R6: 0 | S6: 0 | T6: 0 | U6: 0 | V6: 0 | W6: 0 | X6: 0 | Y6: 0.03 | Z6: 0 | AA6: 0.18 | AB6: 0.28 | AC6: 0.1 | AD6: 10600 | AE6: 0.18 | AF6: 0.28 | AG6: 0.2 | AH6: 0.24 | AI6: 0.01 | AJ6: 300000 | AK6: 1500000 | AL6: 0.18 | AM6: 0.08 | AN6: 7605 | AO6: 42475 | AP6: 0.12 | AQ6: 0.02 | AR6: 7488 | AS6: 0.138 | AT6: 146 | AU6: 817 | AV6: 7605 | AW6: 42475 | AX6: 0.09 | AY6: 0.02 | AZ6: 2.65 | BA6: 0 | BB6: 0.2 | BC6: 0.05 | CA6: 325000 | CB6: 0.4 | CC6: 0.25 | CD6: 0 | CE6: 50000 | CF6: 60000 | CG6: 100 | CH6: 0.01
A7: 2013 | B7: 2013/2014 | C7: 2018-05-04 | D7: 9440 | E7: 100000 | F7: 0.5 | G7: 2790 | H7: 0.1 | I7: 29220 | J7: 0.2 | K7: 117990 | L7: 0.4 | M7: 0.45 | N7: 0.1 | O7: 0.1 | P7: 0.325 | Q7: 0.375 | R7: 0 | S7: 0 | T7: 0 | U7: 0 | V7: 0 | W7: 0 | X7: 0 | Y7: 0.03 | Z7: 21100 | AA7: 0.18 | AB7: 0.28 | AC7: 0.1 | AD7: 10900 | AE7: 0.18 | AF7: 0.28 | AG7: 0.2 | AH7: 0.23 | AI7: 0.0075 | AJ7: 300000 | AK7: 1500000 | AL7: 0.18 | AM7: 0.08 | AN7: 7755 | AO7: 41450 | AP7: 0.12 | AQ7: 0.02 | AR7: 7696 | AS7: 0.138 | AT7: 149 | AU7: 797 | AV7: 7755 | AW7: 41450 | AX7: 0.09 | AY7: 0.02 | AZ7: 2.7 | BA7: 0 | BB7: 0.2 | BC7: 0.05 | CA7: 325000 | CB7: 0.4 | CC7: 0.25 | CD7: 0 | CE7: 50000 | CF7: 60000 | CG7: 100 | CH7: 0.01
A8: 2014 | B8: 2014/2015 | C8: 2018-05-04 | D8: 10000 | E8: 100000 | F8: 0.5 | G8: 2880 | H8: 0.1 | I8: 28985 | J8: 0.2 | K8: 118135 | L8: 0.4 | M8: 0.45 | N8: 0.1 | O8: 0.1 | P8: 0.325 | Q8: 0.375 | R8: 0 | S8: 0 | T8: 0 | U8: 0 | V8: 0 | W8: 0 | X8: 0 | Y8: 0.03 | Z8: 21700 | AA8: 0.18 | AB8: 0.28 | AC8: 0.1 | AD8: 11000 | AE8: 0.18 | AF8: 0.28 | AG8: 0.2 | AH8: 0.21 | AI8: 0.0025 | AJ8: 300000 | AK8: 1500000 | AL8: 0.18 | AM8: 0.08 | AN8: 7956 | AO8: 41865 | AP8: 0.12 | AQ8: 0.02 | AR8: 7956 | AS8: 0.138 | AT8: 153 | AU8: 805 | AV8: 7956 | AW8: 41865 | AX8: 0.09 | AY8: 0.02 | AZ8: 2.75 | BA8: 0 | BB8: 0.2 | BC8: 0.05 | CA8: 325000 | CB8: 0.4 | CC8: 0.25 | CD8: 0 | CE8: 50000 | CF8: 60000 | CG8: 100 | CH8: 0.01
A9: 2015 | B9: 2015/2016 | C9: 2018-05-04 | D9: 10600 | E9: 100000 | F9: 0.5 | G9: 5000 | H9: 0 | I9: 26785 | J9: 0.2 | K9: 118215 | L9: 0.4 | M9: 0.45 | N9: 0.1 | O9: 0.1 | P9: 0.325 | Q9: 0.375 | R9: 0 | S9: 0 | T9: 0 | U9: 0 | V9: 0 | W9: 0 | X9: 0 | Y9: 0.03 | Z9: 22100 | AA9: 0.18 | AB9: 0.28 | AC9: 0.1 | AD9: 11100 | AE9: 0.18 | AF9: 0.28 | AG9: 0.2 | AH9: 0.2 | AI9: 0 | AJ9: 300000 | AK9: 1500000 | AL9: 0.18 | AM9: 0.08 | AN9: 8060 | AO9: 42380 | AP9: 0.12 | AQ9: 0.02 | AR9: 8112 | AS9: 0.138 | AT9: 155 | AU9: 815 | AV9: 8060 | AW9: 42380 | AX9: 0.09 | AY9: 0.02 | AZ9: 2.8 | BA9: 5965 | BB9: 0.2 | BC9: 0.05 | CA9: 325000 | CB9: 0.4 | CC9: 0.25 | CD9: 0 | CE9: 50000 | CF9: 60000 | CG9: 100 | CH9: 0.01
A10: 2016 | B10: 2016/2017 | C10: 2018-05-04 | D10: 11000 | E10: 100000 | F10: 0.5 | G10: 5000 | H10: 0 | I10: 27000 | J10: 0.2 | K10: 118000 | L10: 0.4 | M10: 0.45 | N10: 0.075 | O10: 0.075 | P10: 0.325 | Q10: 0.381 | R10: 5000 | S10: 1000 | T10: 500 | U10: 0 | V10: 0 | W10: 0 | X10: 0 | Y10: 0.03 | Z10: 22200 | AA10: 0.1 | AB10: 0.2 | AC10: 0.1 | AD10: 11100 | AE10: 0.18 | AF10: 0.28 | AG10: 0.2 | AH10: 0.2 | AI10: 0 | AJ10: 300000 | AK10: 1500000 | AL10: 0.18 | AM10: 0.08 | AN10: 8112 | AO10: 43004 | AP10: 0.12 | AQ10: 0.02 | AR10: 8112 | AS10: 0.138 | AT10: 156 | AU10: 827 | AV10: 8060 | AW10: 43000 | AX10: 0.09 | AY10: 0.02 | AZ10: 2.8 | BA10: 5965 | BB10: 0.2 | BC10: 0.05 | CA10: 325000 | CB10: 0.4 | CC10: 0.25 | CD10: 0 | CE10: 50000 | CF10: 60000 | CG10: 100 | CH10: 0.01
A11: 2017 | B11: 2017/2018 | C11: 2018-05-04 | D11: 11500 | E11: 100000 | F11: 0.5 | G11: 5000 | H11: 0 | I11: 28500 | J11: 0.2 | K11: 116500 | L11: 0.4 | M11: 0.45 | N11: 0.075 | O11: 0.075 | P11: 0.325 | Q11: 0.381 | R11: 5000 | S11: 1000 | T11: 500 | U11: 0 | V11: 0 | W11: 0 | X11: 0 | Y11: 0.025 | Z11: 22600 | AA11: 0.1 | AB11: 0.2 | AC11: 0.1 | AD11: 11300 | AE11: 0.18 | AF11: 0.28 | AG11: 0.19 | AH11: 0.19 | AI11: 0 | AJ11: 300000 | AK11: 1500000 | AL11: 0.18 | AM11: 0.08 | AN11: 8164 | AO11: 45032 | AP11: 0.12 | AQ11: 0.02 | AR11: 8164 | AS11: 0.138 | AT11: 157 | AU11: 866 | AV11: 8164 | AW11: 45000 | AX11: 0.09 | AY11: 0.02 | AZ11: 2.85 | BA11: 6025 | BB11: 0.2 | BC11: 0.05 | BD11: 11500 | BE11: 100000 | BF11: 0.5 | BG11: 0 | BH11: 0 | BI11: 31500 | BJ11: 0.2 | BK11: 118500 | BL11: 0.4 | BM11: 0.45 | BP11: 0.075 | BQ11: 0.075 | BR11: 0.325 | BS11: 0.381 | BT11: 5000 | BU11: 1000 | BV11: 500 | BW11: 0 | BX11: 0 | BY11: 0 | BZ11: 0 | CA11: 325000 | CB11: 0.4 | CC11: 0.25 | CD11: 100000 | CE11: 50000 | CF11: 60000 | CG11: 100 | CH11: 0.01
A12: 2018 | B12: 2018/2019 | C12: 2018-05-04 | D12: 11850 | E12: 100000 | F12: 0.5 | G12: 5000 | H12: 0 | I12: 29500 | J12: 0.2 | K12: 115500 | L12: 0.4 | M12: 0.45 | N12: 0.075 | O12: 0.075 | P12: 0.325 | Q12: 0.381 | R12: 2000 | S12: 1000 | T12: 500 | U12: 0 | V12: 0 | W12: 0 | X12: 0 | Y12: 0.025 | Z12: 23400 | AA12: 0.1 | AB12: 0.2 | AC12: 0.1 | AD12: 11700 | AE12: 0.18 | AF12: 0.28 | AG12: 0.19 | AH12: 0.19 | AI12: 0 | AJ12: 300000 | AK12: 1500000 | AL12: 0.18 | AM12: 0.08 | AN12: 8424 | AO12: 46384 | AP12: 0.12 | AQ12: 0.02 | AR12: 8424 | AS12: 0.138 | AT12: 162 | AU12: 892 | AV12: 8424 | AW12: 46350 | AX12: 0.09 | AY12: 0.02 | AZ12: 2.95 | BA12: 6205 | BB12: 0.2 | BC12: 0.05 | BD12: 11850 | BE12: 100000 | BF12: 0.5 | BG12: 0 | BH12: 0 | BI12: 10150 | BJ12: 0.2 | BK12: 118420 | BL12: 0.41 | BM12: 0.46 | BP12: 0.075 | BQ12: 0.075 | BR12: 0.325 | BS12: 0.381 | BT12: 2000 | BU12: 1000 | BV12: 500 | BW12: 2000 | BX12: 0.19 | BY12: 19430 | BZ12: 0.21 | CA12: 325000 | CB12: 0.4 | CC12: 0.25 | CD12: 125000 | CE12: 50000 | CF12: 60000 | CG12: 100 | CH12: 0.01
A13: 2023 | B13: 2023/24 | C13: 2023-01-04 | D13: 12570 | E13: 100000 | F13: 0.5 | G13: 5000 | H13: 0 | I13: 32700 | J13: 0.2 | K13: 87440 | L13: 0.4 | M13: 0.45 | N13: 0 | O13: 0.0875 | P13: 0.3375 | Q13: 0.3935 | R13: 1000 | S13: 1000 | T13: 500 | U13: 0 | V13: 0 | W13: 0 | X13: 0 | Y13: 0.02 | Z13: 27800 | AA13: 0.1 | AB13: 0.2 | AC13: 0.1 | AD13: 6000 | AE13: 0.18 | AF13: 0.28 | AG13: 0.19 | AH13: 0.25 | AI13: 0.015 | AJ13: 50000 | AK13: 250000 | AL13: 0.18 | AM13: 0.06 | AN13: 9880 | AO13: 50270 | AP13: 0.1325 | AQ13: 0.0325 | AR13: 9100 | AS13: 0.1505 | AT13: 190 | AU13: 967 | AV13: 11908 | AW13: 50270 | AX13: 0.1025 | AY13: 0.0325 | AZ13: 3.45 | BA13: 6725 | BB13: 0.2 | BC13: 0.05 | BD13: 12570 | BE13: 100000 | BF13: 0.5 | BG13: 0 | BH13: 0 | BI13: 10956 | BJ13: 0.2 | BK13: 81478 | BL13: 0.42 | BM13: 0.47 | BP13: 0.075 | BQ13: 0.0875 | BR13: 0.3375 | BS13: 0.3935 | BT13: 1000 | BU13: 1000 | BV13: 500 | BW13: 2162 | BX13: 0.19 | BY13: 17974 | BZ13: 0.21 | CA13: 325000 | CB13: 0.4 | CC13: 0.25 | CD13: 175000 | CE13: 50000 | CF13: 60000 | CG13: 100 | CH13: 0.01
A14: 2024 | B14: 2024/25 | C14: 2023-01-04 | D14: 12570 | E14: 100000 | F14: 0.5 | G14: 5000 | H14: 0 | I14: 32700 | J14: 0.2 | K14: 87440 | L14: 0.4 | M14: 0.45 | N14: 0 | O14: 0.0875 | P14: 0.3375 | Q14: 0.3935 | R14: 500 | S14: 1000 | T14: 500 | U14: 0 | V14: 0 | W14: 0 | X14: 0 | Y14: 0.02 | Z14: 27800 | AA14: 0.1 | AB14: 0.2 | AC14: 0.1 | AD14: 3000 | AE14: 0.18 | AF14: 0.28 | AG14: 0.19 | AH14: 0.25 | AI14: 0.015 | AJ14: 50000 | AK14: 250000 | AL14: 0.18 | AM14: 0.06 | AN14: 9880 | AO14: 50270 | AP14: 0.1325 | AQ14: 0.0325 | AR14: 9100 | AS14: 0.1505 | AT14: 190 | AU14: 967 | AV14: 11908 | AW14: 50270 | AX14: 0.1025 | AY14: 0.0325 | AZ14: 3.45 | BA14: 6725 | BB14: 0.2 | BC14: 0.05 | BD14: 12570 | BE14: 100000 | BF14: 0.5 | BG14: 0 | BH14: 0 | BI14: 11685 | BJ14: 0.2 | BK14: 31338 | BL14: 0.42 | BM14: 0.45 | BN14: =125140-75000 -> 50140 | BO14: 0.48 | BP14: 0.075 | BQ14: 0.0875 | BR14: 0.3375 | BS14: 0.3935 | BT14: 500 | BU14: 1000 | BV14: 500 | BW14: 2306 | BX14: 0.19 | BY14: 17101 | BZ14: 0.21 | CA14: 325000 | CB14: 0.4 | CC14: 0.25 | CD14: 175000 | CE14: 50000 | CF14: 60000 | CG14: 100 | CH14: 0.01

Sheet xxxmanual (hidden)
A1: total
A2: bhp | B2: Detailed calculations - income tax calculator | F2: No pension or GA
C4: =+IF(H93="Yes","Choose the method of computation:","The method makes no difference with these figures") -> The method makes no difference with these figures | D4: Most beneficial | F4: new country here | H4: S_ | S4: Years hardcoded
C6: =+total!G6 -> 2024/2025 | D6: Total (£) | F6: Non-savings (£) | H6: Savings (£) | J6: Dividend (£)
C8: Income | D8: =+SUM(F8:J8) -> 15000 | F8: 15000 | H8: 0 | J8: 0
C9: =+IF(D9<total!G15,"Personal allowance (restricted to total income)","Personal allowance") -> Personal allowance | D9: =+SUM(F9:J9) -> 12570 | F9: =+D99 -> 12570 | H9: =+D100 -> 0 | J9: =+D101 -> 0 | V9: broken at small amounts
D10: =+MAX(D8-D9,0) -> 2430 | F10: =MAX(0,F8-F9) -> 2430 | H10: =MAX(0,H8-H9) -> 0 | J10: =+MAX(0,J8-J9) -> 0
C12: Income within savings/dividend zero rate | H12: =+MAX(0,D110) -> 0 | J12: =+MAX(0,D124) -> 0 | T12: =+input!J5 -> 2025 | V12: tax using formula
C13: Income at savings rate | H13: =+D109 -> 0 | V13: =tax(qry_tax_rates22[],H4,F8,H8,J8,H38) -> 462.94
C14: Income at starter rate | F14: =+D117 -> 2306
C15: Income at basic and basic dividend rate | F15: =+D118+D116 -> 124 | H15: =+D111 -> 0 | J15: =+D125 -> 0
C16: Income at intermediate rate | F16: =+D119 -> 0
C17: Income at higher and higher dividend rate | F17: =+D120 -> 0 | H17: =+D112 -> 0 | J17: =+D126 -> 0
C18: Income at additional and additional dividend rate | F18: =+D121 -> 0 | H18: =+D113 -> 0 | J18: =+D127 -> 0
C20: Tax at savings rate | H20: =+D131 -> 0
C21: Tax at starter rate | F21: =+D137 -> 438.14
C22: Tax at basic rate | F22: =+D138 -> 24.8 | H22: =+D132 -> 0 | J22: =+D144 -> 0
C23: Tax at intermediate rate | F23: =+D139 -> 0
C24: Tax at higher rate | F24: =+D140 -> 0 | H24: =+D133 -> 0 | J24: =+D145 -> 0
C25: =IF(H4="S_","Tax at advanced rate","Tax at additional rate") -> Tax at advanced rate | F25: =+D141 -> 0 | H25: =+D134 -> 0 | J25: =+D146 -> 0 | W25: advancd rate if scot
C26: Tax at top rate | W26: If scottish
F27: =+SUM(F20:F25) -> 462.94 | H27: =+SUM(H20:H25) -> 0 | J27: =+SUM(J20:J25) -> 0
C28: Less dividend tax credit | J28: =IF(VALUE(LEFT(D38,4))<2016,J10*-0.1,0) -> 0
C29: Less basic rate relief for finance costs on rental | F29: =-D156 -> 0
C30: Total tax | D30: =SUM(F30:J30) -> 462.94 | F30: =+SUM(F27:F29) -> 462.94 | H30: =+SUM(H27:H29) -> 0 | J30: =+SUM(J27:J29) -> 0
C32: Disallowed credit for finance costs to carry forward | D32: =+D157 -> 0
C37: Tax comps | D37: limit here to whatever year
C38: Rates | D38: =+C6 -> 2024/2025 | H38: =+VALUE(LEFT(D38,4)) -> 2024
C39: SR | D39: =+dc(qry_tax_rates22[],$C39,LEFT(D$38,4)) -> 0 | E39: =+dc(qry_tax_rates22[],$C39,LEFT(E$5,4)) -> 
C40: LBR | D40: =+dc(qry_tax_rates22[],$C40,LEFT(D$38,4)) -> 0 | H40: above as start rate
C41: BR | D41: =+dc(qry_tax_rates22[],$C41,LEFT(D$38,4)) -> 0.2 | E41: =+dc(qry_tax_rates22[],$C41,LEFT(E$5,4)) -> 
C42: UBR | D42: =+dc(qry_tax_rates22[],$C42,LEFT(D$38,4)) -> 0 | H42: above as intermediate rate
C43: HR | D43: =+dc(qry_tax_rates22[],$C43,LEFT(D$38,4)) -> 0.4 | E43: =+dc(qry_tax_rates22[],$C43,LEFT(E$5,4)) -> 
C44: AR | D44: =+dc(qry_tax_rates22[],$C44,LEFT(D$38,4)) -> 0.45 | E44: =+dc(qry_tax_rates22[],$C44,LEFT(E$5,4)) -> 
C46: DSR | D46: =+dc(qry_tax_rates22[],$C46,LEFT(D$38,4)) -> 0 | E46: =+dc(qry_tax_rates22[],$C46,LEFT(E$5,4)) -> 
C47: DBR | D47: =+dc(qry_tax_rates22[],$C47,LEFT(D$38,4)) -> 0.0875 | E47: =+dc(qry_tax_rates22[],$C47,LEFT(E$5,4)) -> 
C48: DHR | D48: =+dc(qry_tax_rates22[],$C48,LEFT(D$38,4)) -> 0.3375 | E48: =+dc(qry_tax_rates22[],$C48,LEFT(E$5,4)) -> 
C49: DAR | D49: =+dc(qry_tax_rates22[],$C49,LEFT(D$38,4)) -> 0.3935 | E49: =+dc(qry_tax_rates22[],$C49,LEFT(E$5,4)) -> 
C51: Amounts
C52: SRB | D52: =+dc(qry_tax_rates22[],$C52,LEFT(D$38,4)) -> 5000 | E52: =+dc(qry_tax_rates22[],$C52,LEFT(E$5,4)) ->  | H52: grossed up deductions
C53: LBRB | D53: =+dc(qry_tax_rates22[],$C53,LEFT(D$38,4))+H53 -> 0
C54: BRB | D54: =+dc(qry_tax_rates22[],$C54,LEFT(D$38,4))+H54 -> 32700 | E54: =+dc(qry_tax_rates22[],$C54,LEFT(E$5,4)) ->  | H54: =(+input!J25+input!J27)/(1-dc(qry_tax_rates22[],"BR",D58)) -> 0
C55: UBRB | D55: =+dc(qry_tax_rates22[],$C55,LEFT(D$38,4))+H55 -> 0
C56: HRB | D56: =+dc(qry_tax_rates22[],$C56,LEFT(D$38,4)) -> 87440 | E56: =+dc(qry_tax_rates22[],$C56,LEFT(E$5,4)) -> 
C58: Scottish version | D58: =+LEFT(D38,4) -> 2024
C59: SR | D59: =+dc(qry_tax_rates22[],"S_"&$C59,D$58) -> 0
C60: LBR | D60: =+dc(qry_tax_rates22[],"S_"&$C60,D$58) -> 0.19
C61: BR | D61: =+dc(qry_tax_rates22[],"S_"&$C61,D$58) -> 0.2
C62: UBR | D62: =+dc(qry_tax_rates22[],"S_"&$C62,D$58) -> 0.21
C63: HR | D63: =+dc(qry_tax_rates22[],"S_"&$C63,D$58) -> 0.42
C64: AR | D64: =+dc(qry_tax_rates22[],"S_"&$C64,D$58) -> 0.45
C65: TR | D65: =+dc(qry_tax_rates22[],"S_"&$C65,D$58) -> 0.48
C67: DSR | D67: =+dc(qry_tax_rates22[],"S_"&$C67,D$58) -> 0.075 | P67: Future proof but same at moment
C68: DBR | D68: =+dc(qry_tax_rates22[],"S_"&$C68,D$58) -> 0.0875
C69: DHR | D69: =+dc(qry_tax_rates22[],"S_"&$C69,D$58) -> 0.3375
C70: DAR | D70: =+dc(qry_tax_rates22[],"S_"&$C70,D$58) -> 0.3935
C72: Amounts
C73: SRB | D73: =+dc(qry_tax_rates22[],"S_"&$C73,D$58) -> 0
C74: LBRB | D74: =+dc(qry_tax_rates22[],"S_"&$C74,D$58) -> 2306
C75: BRB | D75: =+dc(qry_tax_rates22[],"S_"&$C75,D$58)+H75 -> 11685 | H75: =+H54 -> 0 | J75: comes from above - only grossed up at BR and extend
C76: UBRB | D76: =+dc(qry_tax_rates22[],"S_"&$C76,D$58) -> 17101
C77: HRB | D77: =+dc(qry_tax_rates22[],"S_"&$C77,D$58) -> 31338
C78: ARB | D78: =+dc(qry_tax_rates22[],"S_"&$C78,D$58) -> 50140
C80: Sav allowance | D80: =sav_allce_amount(qry_tax_rates22[],D83,D84,D85,LEFT(D38,4),input!J27,input!J25) -> 1000
C81: Max div allce | D81: =+dc(qry_tax_rates22[],"div_allce",LEFT(D38,4)) -> 500 | H81: =IF(AND(D87+D88+D89>dc(Table_0,"SRB",D68)+dc(Table_0,"BRB",D68)+dc(Table_0,"PA",D68),D87>dc(Table_0,"SRB",D68)+dc(Table_0,"BRB",D68),D87-D92<dc(Table_0,"SRB",D68)+dc(Table_0,"BRB",D68))=TRUE,D87-dc(Table_0,"SRB",D68)-dc(Table_0,"BRB",D68),+MIN(D92,D87))
C82: From anywhere
C83: NSI | D83: =F8 -> 15000
C84: Savings | D84: =H8 -> 0
C85: Dividends | D85: =J8 -> 0
C86: pension | D86: =+input!J25 -> 0
C87: gift aid | D87: =+input!J27 -> 0 | H87: tax copied in | J87: =+total!G19 -> 0
C89: Adjust income for PA
C90: PA | D90: =+MIN(D8,PA_amt(qry_tax_rates22[],H4,input!J12,F8+H8,LEFT(C6,4),input!J27,input!J25)) -> 12570 | F90: PA_amt must use net div
C91: Allocate PA - always based on UK see opposite | D91: complex scenario | F91: simple scenario | H91: difference? | J91: Chosen? | N91: Based PA allocation on UK rates
C92: NSI | D92: =+PA_alloc(qry_tax_rates22[],"NSI",H4,D83,D84,D85,LEFT(D38,4),D86,D88) -> 0 | J92: =+D4 -> Most beneficial | N92: Else you may leave a portion of income at HR | X92: pass one | Y92: =working_tax(qry_tax_rates22[],H4,D83,D84,D85,D58,D86,D87,"n") -> 462.94 | Z92: simple
C93: Savings | D93: =+PA_alloc(qry_tax_rates22[],"sav",H4,D83,D84,D85,LEFT(D38,4),D86,D88) -> 0 | F93: =+MIN(D90-F96,D84) -> 0 | H93: =+IF(OR(D93<>F93,D94<>F94,D96<>F96)=TRUE,"Yes","No") -> No | J93: Standard | N93: But get dividends etc into gap - or rather that | X93: pass two | Y93: =working_tax(qry_tax_rates22[],H4,D83,D84,D85,D58,D86,D87,"y") -> 462.94 | Z93: complex
C94: Dividends | D94: =+PA_alloc(qry_tax_rates22[],"div",H4,D83,D84,D85,LEFT(D38,4),D86,D88) -> 0 | F94: =+MIN(D90-F96-F93,D85) -> 0 | J94: Most beneficial | N94: is where the PA will be allocated
C95: NSI mop up | D95: =+MAX(0,D90-D92-D93-D94) -> 12570
C96: New NSI | D96: =+MIN(D95+D92,D83) -> 12570 | F96: =+MIN(D90,D83) -> 12570
C98: Chosen alloocation method
C99: NSI | D99: =+IF(Y93<Y92,D96,F96) -> 12570 | F99: Ditributes any remaining PA elsewhere if left - need formula to do same
C100: Savings | D100: =+IF(Y93<Y92,D93,F93) -> 0
C101: Dividends | D101: =+IF(Y93<Y92,D94,F94) -> 0
C103: Adjusted income
C104: NSI | D104: =+D83-D99 -> 2430
C105: Savings | D105: =+D84-D100 -> 0 | H105: Order is NSI, savings, dividends
C106: Dividends | D106: =+D85-D101 -> 0 | H106: despite order shown
B107: Income
C108: Amount savings - COMES SECOND AFTER NSI
C109: SR amount | D109: =+MAX(MIN(D52-D104,D105),0) -> 0 | F109: Scotland element removed as not relevant - watch as this had D90 not 70 and got zero result always
C110: Savings allowance - always be same as based on UK rates | D110: =+MIN(sav_allce_amount(qry_tax_rates22[],D83,D84,D85,LEFT(D38,4),input!J27,input!J25),D105-D109) -> 0 | J110: now allows for pension / gift aid | N110: remember to reduce band by anything used here
C111: BR amount | D111: =+MAX(0,MIN(D105-D109-D110,D54+D52-D104-D110-D109)) -> 0
C112: HR amount | D112: =MAX(0,MIN(D105-D109-D111-D110,D56+D54+D52-D104-D111-D110-D109)) -> 0
C113: AR amount | D113: =D105-D109-D111-D112-D110 -> 0
C115: Amount NSI | D115: =+IF(H4="S_","SCOTLAND","rUK") -> SCOTLAND | F115: must remove whatever has been used as savings = total savings above
C116: SR amount | D116: =IF(H4<>"S_",+MAX(MIN(D52,D104),0),MAX(MIN(D73,D104),0)) -> 0 | F116: set at 0 - see scotland_array for details | J116: only this needs changed for Scotland
C117: LBR amount | D117: =+IF(H4<>"S_",MAX(MIN(D53,D104-D116),0),MAX(MIN(D74,D104-D116),0)) -> 2306
C118: BR amount | D118: =+IF(H4<>"S_",MAX(MIN(D54,D104-D116-D117),0),MAX(MIN(D75,D104-D116-D117),0)) -> 124 | J118: Can't deduct what has been used but what would have been used
C119: UBR amount | D119: =+IF(H4<>"S_",MAX(MIN(D55,D104-D116-D117-D118),0),MAX(MIN(D76,D104-D116-D117-D118),0)) -> 0
C120: HR amount | D120: =IF(H4<>"S_",+MIN(D104-D118-D116-D117-D119,D56),MIN(D104-D118-D116-D117-D119,D77)) -> 0
C121: AR amount | D121: =+D104-D116-D118-D120-D117-D119 -> 0
C123: Amount dividends
C124: Exempt amount - always same | D124: =+MIN(dc(qry_tax_rates22[],"div_allce",LEFT(D38,4)),D106) -> 0 | J124: These are done via totals rather than above to allow for savings allowance deduction
C125: BR amount | D125: =+MAX(MIN(D106-D124,D52+D54+D53+D55-D104-D105-D124),0) -> 0
C126: HR amount | D126: =MAX(0,+MIN(D106-D125-D124,D52+D54+D53+D55+D56-D104-D105-D124-D125)) -> 0 | F126: check
C127: AR amount | D127: =+D106-D125-D126-D124 -> 0
B129: Tax
C130: Savings
C131: SR | D131: =+D109*D39 -> 0
C132: BR | D132: =+D111*D41 -> 0
C133: HR | D133: =+D112*D43 -> 0
C134: AR | D134: =+D113*D44 -> 0
C136: NSI
C137: LBR | D137: =IF(H4="S_",(D117)*D60,(D117)*D40) -> 438.14
C138: BR | D138: =IF(H4="S_",(D118+D116)*D61,(D118+D116)*D41) -> 24.8
C139: UBR | D139: =+IF(H4="S_",(D116+D119)*D62,(D116+D119)*D42) -> 0
C140: HR | D140: =+IF(H4="S_",D120*D63,D120*D43) -> 0
C141: AR | D141: =IF(H4="S_",D121*D64,+D121*D44) -> 0
C143: Dividends
C144: BR | D144: =+D125*D47 -> 0
C145: HR | D145: =+D126*D48 -> 0 | F145: only split rates in NSI a rest are UK rates
C146: AR | D146: =+D127*D49 -> 0
C148: Total | D148: =+SUM(D131:D147) -> 462.94
C149: Interest credit | F149: xxxx
C150: Rate | D150: =IF(LEFT(D38,4)<"2016",0,(IF(LEFT(D38,4)>"2020",1,INDEX(H151:H155,MATCH(LEFT(D38,4),F151:F155,0))))) -> 1 | F150: percentages
C151: Max credit | D151: =+D150*input!J29*xxxmanual!D41 -> 0 | F151: 2016 | H151: 0
C152: Credit ltd to lower of: | F152: 2017 | H152: 0.25
C153: finance costs - not relieved - as above | D153: =+D151 -> 0 | F153: 2018 | H153: 0.5
C154: profits of property business in year | D154: =MAX(0,+(input!J14-xxxmanual!D158)*D41) -> 0 | F154: 2019 | H154: 0.75
C155: Non savings, non-div inc after allowances | D155: =+SUM(D116:D121)*D41 -> 486 | F155: 2020 | H155: 1
C156: credit allowed | D156: =+MIN(D153:D155) -> 0
C157: credit to carry | D157: =MAX(0,D151-D156) -> 0
C158: to charge vs profit | D158: =+(1-D150)*input!J29 -> 0

Sheet Sheet2
C1: 2024/25
C2: NSI | D2: 12570 | E2: 15000 | F2: 17250 | G2: =F2+2500 -> 19750 | H2: =G2+2500 -> 22250 | I2: 24750 | J2: 27250 | K2: 29750 | L2: 32250 | M2: 34750 | N2: 37250 | O2: 39750 | P2: 42250 | Q2: 44750
C3: UK tax | D3: =tax(qry_tax_rates22[],"",D2,0,0,2024) -> 0 | E3: =tax(qry_tax_rates22[],"",E2,0,0,2024) -> 486 | F3: =tax(qry_tax_rates22[],"",F2,0,0,2024) -> 936 | G3: =tax(qry_tax_rates22[],"",G2,0,0,2024) -> 1436 | H3: =tax(qry_tax_rates22[],"",H2,0,0,2024) -> 1936 | I3: =tax(qry_tax_rates22[],"",I2,0,0,2024) -> 2436 | J3: =tax(qry_tax_rates22[],"",J2,0,0,2024) -> 2936 | K3: =tax(qry_tax_rates22[],"",K2,0,0,2024) -> 3436 | L3: =tax(qry_tax_rates22[],"",L2,0,0,2024) -> 3936 | M3: =tax(qry_tax_rates22[],"",M2,0,0,2024) -> 4436 | N3: =tax(qry_tax_rates22[],"",N2,0,0,2024) -> 4936 | O3: =tax(qry_tax_rates22[],"",O2,0,0,2024) -> 5436 | P3: =tax(qry_tax_rates22[],"",P2,0,0,2024) -> 5936 | Q3: =tax(qry_tax_rates22[],"",Q2,0,0,2024) -> 6436 | T3: break even
C4: Scot tax | D4: =tax(qry_tax_rates22[],"S_",D2,0,0,2024) -> 0 | E4: =tax(qry_tax_rates22[],"S_",E2,0,0,2024) -> 462.94 | F4: =tax(qry_tax_rates22[],"S_",F2,0,0,2024) -> 912.94 | G4: =tax(qry_tax_rates22[],"S_",G2,0,0,2024) -> 1412.94 | H4: =tax(qry_tax_rates22[],"S_",H2,0,0,2024) -> 1912.94 | I4: =tax(qry_tax_rates22[],"S_",I2,0,0,2024) -> 2412.94 | J4: =tax(qry_tax_rates22[],"S_",J2,0,0,2024) -> 2919.83 | K4: =tax(qry_tax_rates22[],"S_",K2,0,0,2024) -> 3444.83 | L4: =tax(qry_tax_rates22[],"S_",L2,0,0,2024) -> 3969.83 | M4: =tax(qry_tax_rates22[],"S_",M2,0,0,2024) -> 4494.83 | N4: =tax(qry_tax_rates22[],"S_",N2,0,0,2024) -> 5019.83 | O4: =tax(qry_tax_rates22[],"S_",O2,0,0,2024) -> 5544.83 | P4: =tax(qry_tax_rates22[],"S_",P2,0,0,2024) -> 6069.83 | Q4: =tax(qry_tax_rates22[],"S_",Q2,0,0,2024) -> 6823.31 | T4: NSI | U4: 28800
T5: UK | U5: =tax(qry_tax_rates22[],"",U4,0,0,2024) -> 3246
T6: Scot | U6: =tax(qry_tax_rates22[],"S_",U4,0,0,2024) -> 3245.33
C7: More UK | D7: =IF(D3>D4,D3-D4,0) -> 0 | E7: =IF(E3>E4,E3-E4,0) -> 23.06 | F7: 23.06 | G7: 23.06 | H7: 23.06 | I7: 23.06 | J7: 16.17 | K7: 0 | L7: 0 | M7: 0 | N7: 0 | O7: 0 | P7: 0 | Q7: 0 | U7: =U5-U6 -> 0.67
C8: More Scots | D8: =IF(D3<D4,D4-D3,0) -> 0 | E8: =IF(E3<E4,E4-E3,0) -> 0 | F8: 0 | G8: 0 | H8: 0 | I8: 0 | J8: 0 | K8: 8.83 | L8: 33.83 | M8: 58.83 | N8: 83.83 | O8: 108.83 | P8: 133.83 | Q8: 387.31
C18: 2023/24
C19: NSI | D19: 12570 | E19: 15000 | F19: 17250 | G19: =F19+2500 -> 19750 | H19: =G19+2500 -> 22250 | I19: 24750 | J19: 27250 | K19: 29750 | L19: 32250 | M19: 34750 | N19: 37250 | O19: 39750 | P19: 42250 | Q19: 44750 | T19: break even
C20: UK tax | D20: =tax(qry_tax_rates22[],"",D19,0,0,2023) -> 0 | E20: =tax(qry_tax_rates22[],"",E19,0,0,2023) -> 486 | F20: =tax(qry_tax_rates22[],"",F19,0,0,2023) -> 936 | G20: =tax(qry_tax_rates22[],"",G19,0,0,2023) -> 1436 | H20: =tax(qry_tax_rates22[],"",H19,0,0,2023) -> 1936 | I20: =tax(qry_tax_rates22[],"",I19,0,0,2023) -> 2436 | J20: =tax(qry_tax_rates22[],"",J19,0,0,2023) -> 2936 | K20: =tax(qry_tax_rates22[],"",K19,0,0,2023) -> 3436 | L20: =tax(qry_tax_rates22[],"",L19,0,0,2023) -> 3936 | M20: =tax(qry_tax_rates22[],"",M19,0,0,2023) -> 4436 | N20: =tax(qry_tax_rates22[],"",N19,0,0,2023) -> 4936 | O20: =tax(qry_tax_rates22[],"",O19,0,0,2023) -> 5436 | P20: =tax(qry_tax_rates22[],"",P19,0,0,2023) -> 5936 | Q20: =tax(qry_tax_rates22[],"",Q19,0,0,2023) -> 6436 | T20: NSI | U20: 27800
C21: Scot tax | D21: =tax(qry_tax_rates22[],"S_",D19,0,0,2023) -> 0 | E21: =tax(qry_tax_rates22[],"S_",E19,0,0,2023) -> 464.38 | F21: =tax(qry_tax_rates22[],"S_",F19,0,0,2023) -> 914.38 | G21: =tax(qry_tax_rates22[],"S_",G19,0,0,2023) -> 1414.38 | H21: =tax(qry_tax_rates22[],"S_",H19,0,0,2023) -> 1914.38 | I21: =tax(qry_tax_rates22[],"S_",I19,0,0,2023) -> 2414.38 | J21: =tax(qry_tax_rates22[],"S_",J19,0,0,2023) -> 2930 | K21: =tax(qry_tax_rates22[],"S_",K19,0,0,2023) -> 3455 | L21: =tax(qry_tax_rates22[],"S_",L19,0,0,2023) -> 3980 | M21: =tax(qry_tax_rates22[],"S_",M19,0,0,2023) -> 4505 | N21: =tax(qry_tax_rates22[],"S_",N19,0,0,2023) -> 5030 | O21: =tax(qry_tax_rates22[],"S_",O19,0,0,2023) -> 5555 | P21: =tax(qry_tax_rates22[],"S_",P19,0,0,2023) -> 6080 | Q21: =tax(qry_tax_rates22[],"S_",Q19,0,0,2023) -> 6833.48 | T21: UK | U21: =tax(qry_tax_rates22[],"",U20,0,0,2023) -> 3046
T22: Scot | U22: =tax(qry_tax_rates22[],"S_",U20,0,0,2023) -> 3045.5
U23: =U21-U22 -> 0.5
C24: More UK | D24: =IF(D20>D21,D20-D21,0) -> 0 | E24: =IF(E20>E21,E20-E21,0) -> 21.62 | F24: 21.62 | G24: 21.62 | H24: 21.62 | I24: 21.62 | J24: 6 | K24: 0 | L24: 0 | M24: 0 | N24: 0 | O24: 0 | P24: 0 | Q24: 0
C25: More Scots | D25: =IF(D20<D21,D21-D20,0) -> 0 | E25: =IF(E20<E21,E21-E20,0) -> 0 | F25: 0 | G25: 0 | H25: 0 | I25: 0 | J25: 0 | K25: 19 | L25: 44 | M25: 69 | N25: 94 | O25: 119 | P25: 144 | Q25: 397.48

Sheet xxxmanualold (hidden)
A1: total
B2: Detailed calculations - income tax calculator
C4: =+IF(H90="Yes","Choose the method of computation:","The method makes no difference with these figures") ->  | D4: Standard | S4: Years hardcoded
C6: =+total!G6 -> 2024/2025 | D6: Total (£) | F6: Non-savings (£) | H6: Savings (£) | J6: Dividend (£)
C8: Income | D8: =+SUM(F8:J8) -> 49000 | F8: 37000 | H8: 0 | J8: 12000
C9: =+IF(D9<total!G15,"Personal allowance (restricted to total income)","Personal allowance") -> Personal allowance (restricted to total income) | D9: =+SUM(F9:J9) -> 11850 | F9: =11850-H9-J9 -> 2500 | J9: =10000-650 -> 9350
D10: =+D8-D9 -> 37150 | F10: =+F8-F9 -> 34500 | H10: =+H8-H9 -> 0 | J10: =+J8-J9 -> 2650
C12: Income within savings/dividend zero rate | H12: =+D107 ->  | J12: =+D121 ->  | T12: =+input!J5 -> 2025
C13: Income at savings rate | H13: =+D106 -> 
C14: Income at start rate | F14: =+D114 -> 
C15: Income at basic and basic dividend rate | F15: =+D115+D113 ->  | H15: =+D108 ->  | J15: =+D122 -> 
C16: Income at intermediate rate | F16: =+D116 -> 
C17: Income at higher and higher dividend rate | F17: =+D117 ->  | H17: =+D109 ->  | J17: =+D123 -> 
C18: Income at additional and additional dividend rate | F18: =+D118 ->  | H18: =+D110 ->  | J18: =+D124 -> 
C20: Tax at savings rate | H20: =+D128 -> 
C21: Tax at start rate | F21: =+D134 -> 
C22: Tax at basic rate | F22: =+D135 ->  | H22: =+D129 ->  | J22: =+D141 -> 
C23: Tax at intermediate rate | F23: =+D136 -> 
C24: Tax at higher rate | F24: =+D137 ->  | H24: =+D130 ->  | J24: =+D142 -> 
C25: Tax at additional rate | F25: =+D138 ->  | H25: =+D131 ->  | J25: =+D143 -> 
F26: =+SUM(F20:F25) ->  | H26: =+SUM(H20:H25) ->  | J26: =+SUM(J20:J25) -> 
C27: Less dividend tax credit | J27: =IF(VALUE(LEFT(D37,4))<2016,J10*-0.1,0) -> 0
C28: Less basic rate relief for finance costs on rental | F28: =-D153 -> 
C29: Total tax | D29: =SUM(F29:J29) ->  | F29: =+SUM(F26:F28) ->  | H29: =+SUM(H26:H28) ->  | J29: =+SUM(J26:J28) -> 
C36: Tax comps | D36: limit here to whatever year
C37: Rates | D37: =+C6 -> 2024/2025 | H37: =+VALUE(LEFT(D37,4)) -> 2024
C38: SR | D38: =+dc(#REF!,$C38,LEFT(D$37,4)) ->  | E38: =+dc(#REF!,$C38,LEFT(E$5,4)) -> 
C39: LBR | D39: =+dc(#REF!,$C39,LEFT(D$37,4)) ->  | H39: above as start rate
C40: BR | D40: =+dc(#REF!,$C40,LEFT(D$37,4)) ->  | E40: =+dc(#REF!,$C40,LEFT(E$5,4)) -> 
C41: UBR | D41: =+dc(#REF!,$C41,LEFT(D$37,4)) ->  | H41: above as intermediate rate
C42: HR | D42: =+dc(#REF!,$C42,LEFT(D$37,4)) ->  | E42: =+dc(#REF!,$C42,LEFT(E$5,4)) -> 
C43: AR | D43: =+dc(#REF!,$C43,LEFT(D$37,4)) ->  | E43: =+dc(#REF!,$C43,LEFT(E$5,4)) -> 
C45: DSR | D45: =+dc(#REF!,$C45,LEFT(D$37,4)) ->  | E45: =+dc(#REF!,$C45,LEFT(E$5,4)) -> 
C46: DBR | D46: =+dc(#REF!,$C46,LEFT(D$37,4)) ->  | E46: =+dc(#REF!,$C46,LEFT(E$5,4)) -> 
C47: DHR | D47: =+dc(#REF!,$C47,LEFT(D$37,4)) ->  | E47: =+dc(#REF!,$C47,LEFT(E$5,4)) -> 
C48: DAR | D48: =+dc(#REF!,$C48,LEFT(D$37,4)) ->  | E48: =+dc(#REF!,$C48,LEFT(E$5,4)) -> 
C50: Amounts
C51: SRB | D51: =+dc(#REF!,$C51,LEFT(D$37,4)) ->  | E51: =+dc(#REF!,$C51,LEFT(E$5,4)) ->  | H51: grossed up deductions
C52: LBRB | D52: =+dc(#REF!,$C52,LEFT(D$37,4))+H52 -> 
C53: BRB | D53: =+dc(#REF!,$C53,LEFT(D$37,4))+H53 ->  | E53: =+dc(#REF!,$C53,LEFT(E$5,4)) ->  | H53: =(+input!J25+input!J27)/(1-dc(#REF!,"BR",D57)) -> 
C54: UBRB | D54: =+dc(#REF!,$C54,LEFT(D$37,4))+H54 -> 
C55: HRB | D55: =+dc(#REF!,$C55,LEFT(D$37,4)) ->  | E55: =+dc(#REF!,$C55,LEFT(E$5,4)) -> 
C57: Scottish version | D57: =+LEFT(D37,4) -> 2024
C58: SR | D58: =+dc(#REF!,"S_"&$C58,D$57) -> 
C59: LBR | D59: =+dc(#REF!,"S_"&$C59,D$57) -> 
C60: BR | D60: =+dc(#REF!,"S_"&$C60,D$57) -> 
C61: UBR | D61: =+dc(#REF!,"S_"&$C61,D$57) -> 
C62: HR | D62: =+dc(#REF!,"S_"&$C62,D$57) -> 
C63: AR | D63: =+dc(#REF!,"S_"&$C63,D$57) -> 
C65: DSR | D65: =+dc(#REF!,"S_"&$C65,D$57) ->  | P65: Furure proof but same at moment
C66: DBR | D66: =+dc(#REF!,"S_"&$C66,D$57) -> 
C67: DHR | D67: =+dc(#REF!,"S_"&$C67,D$57) -> 
C68: DAR | D68: =+dc(#REF!,"S_"&$C68,D$57) -> 
C70: Amounts
C71: SRB | D71: =+dc(#REF!,"S_"&$C71,D$57) -> 
C72: LBRB | D72: =+dc(#REF!,"S_"&$C72,D$57) -> 
C73: BRB | D73: =+dc(#REF!,"S_"&$C73,D$57)+H73 ->  | H73: =+H53 ->  | J73: comes from above - only grossed up at BR and extend
C74: UBRB | D74: =+dc(#REF!,"S_"&$C74,D$57) -> 
C75: HRB | D75: =+dc(#REF!,"S_"&$C75,D$57) -> 
C77: Sav allowance | D77: =sav_allce_amount(#REF!,D80,D81,D82,LEFT(D37,4),input!J27,input!J25) -> 
C78: Max div allce | D78: =+dc(#REF!,"div_allce",LEFT(D37,4)) ->  | H78: =IF(AND(D87+D88+D89>dc(Table_0,"SRB",D68)+dc(Table_0,"BRB",D68)+dc(Table_0,"PA",D68),D87>dc(Table_0,"SRB",D68)+dc(Table_0,"BRB",D68),D87-D92<dc(Table_0,"SRB",D68)+dc(Table_0,"BRB",D68))=TRUE,D87-dc(Table_0,"SRB",D68)-dc(Table_0,"BRB",D68),+MIN(D92,D87))
C79: From anywhere
C80: NSI | D80: =+F8 -> 37000
C81: Savings | D81: =+H8 -> 0
C82: Dividends | D82: =+J8 -> 12000
C83: pension | D83: =+input!J25 -> 0
C84: gift aid | D84: =+input!J27 -> 0
C86: Adjust income for PA
C87: PA | D87: =+MIN(D8,PA_amt(#REF!,country,input!J12,F8+H8,LEFT(C6,4),input!J27,input!J25)) ->  | F87: PA_amt must use net div
C88: Allocate PA - always based on UK see opposite | D88: complex scenario | F88: simple scenario | H88: difference? | J88: Chosen? | N88: Based PA allocation on UK rates
C89: NSI | D89: =+PA_alloc(#REF!,"NSI",country,D80,D81,D82,LEFT(D37,4),D83,D85) ->  | J89: =+D4 -> Standard | N89: Else you may leave a portion of income at HR
C90: Savings | D90: =+PA_alloc(#REF!,"sav",country,D80,D81,D82,LEFT(D37,4),D83,D85) ->  | F90: =+MIN(D87-F93,D81) ->  | H90: =+IF(OR(D90<>F90,D91<>F91,D93<>F93)=TRUE,"Yes","No") ->  | J90: Standard | N90: But get dividends etc into gap - or rather that
C91: Dividends | D91: =+PA_alloc(#REF!,"div",country,D80,D81,D82,LEFT(D37,4),D83,D85) ->  | F91: =+MIN(D87-F93-F90,D82) ->  | J91: Most beneficial | N91: is where the PA will be allocated
C92: NSI mop up | D92: =+MAX(0,D87-D89-D90-D91) -> 
C93: New NSI | D93: =+MIN(D92+D89,D80) ->  | F93: =+MIN(D87,D80) -> 
C95: Chosen alloocation method
C96: NSI | D96: =+F9 -> 2500 | F96: Ditributes any remaining PA elsewhere if left - need formula to do same
C97: Savings | D97: =+H9 -> 0
C98: Dividends | D98: =+J9 -> 9350
C100: Adjusted income
C101: NSI | D101: =+D80-D96 -> 34500
C102: Savings | D102: =+D81-D97 -> 0 | H102: Order is NSI, savings, dividends
C103: Dividends | D103: =+D82-D98 -> 2650 | H103: despite order shown
B104: Income
C105: Amount savings - COMES SECOND AFTER NSI
C106: SR amount | D106: =+MAX(MIN(D51-D101,D102),0) ->  | F106: Scotland element removed as not relevant - watch as this had D90 not 70 and got zero result always
C107: Savings allowance - always be same as based on UK rates | D107: =+MIN(sav_allce_amount(#REF!,D80,D81,D82,LEFT(D37,4),input!J27,input!J25),D102-D106) ->  | J107: now allows for pension / gift aid | N107: remember to reduce band by anything used here
C108: BR amount | D108: =+MAX(0,MIN(D102-D106-D107,D53+D51-D101-D107)) -> 
C109: HR amount | D109: =MAX(0,MIN(D102-D106-D108-D107,D55+D53+D51-D101-D108-D107-D106)) -> 
C110: AR amount | D110: =D102-D106-D108-D109-D107 -> 
C112: Amount NSI | D112: =+IF(country="S_","SCOTLAND","rUK") -> rUK | F112: must remove whatever has been used as savings = total savings above
C113: SR amount | D113: =IF(country<>"S_",+MAX(MIN(D51,D101),0),MAX(MIN(D71,D101),0)) ->  | F113: set at 0 - see scotland_array for details | J113: only this needs changed for Scotland
C114: LBR amount | D114: =+IF(country<>"S_",MAX(MIN(D52,D101-D113),0),MAX(MIN(D72,D101-D113),0)) -> 
C115: BR amount | D115: =+IF(country<>"S_",MAX(MIN(D53,D101-D113-D114),0),MAX(MIN(D73,D101-D113-D114),0)) ->  | J115: Can't deduct what has been used but what would have been used
C116: UBR amount | D116: =+IF(country<>"S_",MAX(MIN(D54,D101-D113-D114-D115),0),MAX(MIN(D74,D101-D113-D114-D115),0)) -> 
C117: HR amount | D117: =IF(country<>"S_",+MIN(D101-D115-D113-D114-D116,D55),MIN(D101-D115-D113-D114-D116,D75)) -> 
C118: AR amount | D118: =+D101-D113-D115-D117-D114-D116 -> 
C120: Amount dividends
C121: Exempt amount - always same | D121: =+MIN(dc(#REF!,"div_allce",LEFT(D37,4)),D103) ->  | J121: These are done via totals rather than above to allow for savings allowance deduction
C122: BR amount | D122: =+MAX(MIN(D103-D121,D51+D53+D52+D54-D101-D102-D121),0) -> 
C123: HR amount | D123: =MAX(0,+MIN(D103-D122-D121,D51+D53+D52+D54+D55-D101-D102-D121-D122)) ->  | F123: check
C124: AR amount | D124: =+D103-D122-D123-D121 -> 
B126: Tax
C127: Savings
C128: SR | D128: =+D106*D38 -> 
C129: BR | D129: =+D108*D40 -> 
C130: HR | D130: =+D109*D42 -> 
C131: AR | D131: =+D110*D43 -> 
C133: NSI
C134: LBR | D134: =IF(country="S_",(D114)*D59,(D114)*D39) -> 
C135: BR | D135: =IF(country="S_",(D115+D113)*D60,(D115+D113)*D40) -> 
C136: UBR | D136: =+IF(country="S_",(D113+D116)*D61,(D113+D116)*D41) -> 
C137: HR | D137: =+IF(country="S_",D117*D62,D117*D42) -> 
C138: AR | D138: =IF(country="S_",D118*D63,+D118*D43) -> 
C140: Dividends
C141: BR | D141: =+D122*D46 -> 
C142: HR | D142: =+D123*D47 ->  | F142: only split rates in NSI a rest are UK rates
C143: AR | D143: =+D124*D48 -> 
C145: Total | D145: =+SUM(D128:D144) -> 
C146: Interest credit | F146: xxxx
C147: Rate | D147: =IF(LEFT(D37,4)<"2016",0,(IF(LEFT(D37,4)>"2020",1,INDEX(H148:H152,MATCH(LEFT(D37,4),F148:F152,0))))) -> 1 | F147: percentages
C148: Max credit | D148: =+D147*input!J29*xxxmanualold!D40 ->  | F148: 2016 | H148: 0
C149: Credit ltd to 20% of lower of: | F149: 2017 | H149: 0.25
C150: finance costs - not relieved | D150: =+D148 ->  | F150: 2018 | H150: 0.5
C151: profits of property business in year | D151: =+input!J14-xxxmanualold!D155 -> 0 | F151: 2019 | H151: 0.75
C152: NSI after allowances | D152: =+SUM(D115:D118) ->  | F152: 2020 | H152: 1
C153: credit allowed | D153: =+MIN(D150:D152) -> 
C154: credit to carry | D154: =MAX(0,D148-D153) -> 
C155: to charge vs profit | D155: =+(1-D147)*input!J29 -> 0

Sheet info_input
A1: input
A2: bhp | B2: Information - income, expenditure and tax reliefs
B4: Tax year | E4: Choose from the list the tax year for which you want to make a calculation.
B6: Income details
B7: Total earnings | E7: Enter the total of all your earnings (before tax) from employment, profit from self-employment (including your share from partnerships) and pension income.
B9: =+IF(J5<2017,"Dividends (excluding tax credit)","Dividends") -> Dividends (excluding tax credit) | E9: Enter the amount of dividends you received ignoring any tax credit.
B11: Rental income after tax-deductible expenses, but in the case of residential letting, excluding finance costs | E11: Enter your rental income profit for all properties you let, but add back costs which you have deducted for financing the purchase or improvement of residential properties, e.g. mortgage interest.
B14: Savings income, e.g. bank interest | E14: Enter the amount received before any tax that has been deducted.
B16: Other income | E16: Enter the amount of any other income before any tax deducted.
B18: Tax reliefs
B19: Pension contributions (net) | E19: Enter the amount of pension contribution paid by you or on your behalf (except those paid by your employer) ignoring the tax relief added by the pension company, i.e. enter the amount which left your bank account or that of the person who paid the contribution.
B21: Gift aid payments (net) | E21: Enter the amount of gift aid payments you made, ignoring tax relief, i.e. enter the amount which left your bank account.
B23: Finance costs relating to residential accommodation | E23: Enter the amount of finance costs which you added back when entering the figure for rental profit.
